fUST/lending_fUST_20240906
["ID","MTS","AMOUNT","RATE_DAILY","PERIOD"]
[337323044,1725601866310,-715.00735,0.00020912,2]
[337323045,1725601866320,-151.0,0.00020912,2]
[337323046,1725601866332,-1203.92,0.00020912,2]
[337323047,1725601866342,-500.0,0.00020912,2]
[337323048,1725601866352,-1065.29,0.00020912,2]
[337323049,1725601866362,-1409.08,0.00020912,2]
[337323050,1725601866372,-151.0,0.00020912,2]
[337323051,1725601866382,-1093.54,0.00020912,2]
[337323052,1725601866391,-1935.34,0.00020912,2]
[337323053,1725601866401,-500.0,0.00020912,2]
[337323054,1725601866410,-1076.004857,0.00020912,2]
[337323055,1725601866420,-7874.67,0.00020912,2]
[337323056,1725601866429,-500.0,0.00020912,2]
[337323057,1725601866439,-1076.004857,0.00020912,2]
[337323058,1725601866450,-2127.98,0.00020912,2]
[337323059,1725601866460,-1306.663022,0.00020912,2]
[337323060,1725601866470,-1306.663022,0.00020912,2]
[337323061,1725601866480,-910.33,0.00020912,2]
[337323062,1725601866489,-1347.96,0.00020912,2]
[337323063,1725601866499,-500.0,0.00020912,2]
[337323064,1725601866509,-1399.9,0.00020912,2]
[337323065,1725601866519,-500.0,0.00020912,2]
[337323066,1725601866529,-500.0,0.00020912,2]
[337323067,1725601866539,-500.0,0.00020912,2]
[337323068,1725601866549,-500.0,0.00020912,2]
[337323069,1725601866558,-500.0,0.00020912,2]
[337323070,1725601866567,-500.0,0.00020912,2]
[337323071,1725601866578,-500.0,0.00020912,2]
[337323072,1725601866588,-1129.76,0.00020912,2]
[337323073,1725601866598,-500.0,0.00020912,2]
[337323074,1725601866607,-151.0,0.00020912,2]
[337323075,1725601866617,-500.0,0.00020912,2]
[337323077,1725601866627,-500.0,0.00020912,2]
[337323078,1725601866637,-500.0,0.00020912,2]
[337323079,1725601866646,-571.31,0.00020912,2]
[337323080,1725601866656,-654.5,0.00020912,2]
[337323081,1725601866666,-1211.83,0.00020912,2]
[337323082,1725601866676,-535.48,0.00020912,2]
[337323083,1725601866687,-2392.4,0.00020912,2]
[337323084,1725601866696,-1277.93,0.00020912,2]
[337323085,1725601866706,-500.0,0.00020912,2]
[337323086,1725601866716,-151.0,0.00020912,2]
[337323087,1725601866726,-116073.84,0.00020912,2]
[337323088,1725601866735,-500.0,0.00020912,2]
[337323089,1725601866745,-151.0,0.00020912,2]
[337323090,1725601866754,-500.0,0.00020912,2]
[337323091,1725601866763,-699.45,0.00020912,2]
[337323092,1725601866772,-500.0,0.00020912,2]
[337323093,1725601866782,-500.0,0.00020912,2]
[337323094,1725601866791,-500.0,0.00020912,2]
[337323095,1725601866801,-1566.33,0.00020912,2]
[337323096,1725601866810,-500.0,0.00020912,2]
[337323097,1725601866819,-500.0,0.00020912,2]
[337323098,1725601866828,-151.0,0.00020912,2]
[337323099,1725601866838,-1281.328407,0.00020912,2]
[337323100,1725601866847,-500.0,0.00020912,2]
[337323101,1725601866858,-1281.328407,0.00020912,2]
[337323102,1725601866868,-348.34170285,0.00020912,2]
[337323103,1725601866878,-58386.62,0.00020912,2]
[337323104,1725601866887,-500.0,0.00020912,2]
[337323105,1725601866896,-500.0,0.00020912,2]
[337323106,1725601866905,-500.0,0.00020912,2]
[337323107,1725601866915,-500.0,0.00020912,2]
[337323108,1725601866925,-1403.48,0.00020912,2]
[337323109,1725601866934,-1000.0,0.00020921,2]
[337323110,1725601866944,-1000.0,0.00020921,2]
[337323111,1725601866953,-1031.82436764,0.00020921,2]
[337323112,1725601866963,-151.0,0.00020921,2]
[337323113,1725601866972,-167.409688,0.00020921,2]
[337323114,1725601866983,-167.409688,0.00020921,2]
[337323115,1725601866992,-715.00735,0.00020921,2]
[337323116,1725601867001,-715.00735,0.00020921,2]
[337323117,1725601867010,-151.0,0.00020921,2]
[337323118,1725601867020,-274.435217,0.00020921,2]
[337323119,1725601867029,-1076.004857,0.00020921,2]
[337323120,1725601867038,-1076.004857,0.00020921,2]
[337323121,1725601867051,-1306.663022,0.00020921,2]
[337323122,1725601867061,-1306.663022,0.00020921,2]
[337323123,1725601867070,-254.237023,0.00020921,2]
[337323124,1725601867079,-151.0,0.00020921,2]
[337323125,1725601867089,-151.0,0.00020921,2]
[337323126,1725601867099,-151.0,0.00020921,2]
[337323127,1725601867108,-1281.328407,0.00020921,2]
[337323128,1725601867119,-1281.328407,0.00020921,2]
[337323129,1725601867128,-151.0,0.0002093,2]
[337323130,1725601867137,-151.0,0.0002093,2]
[337323131,1725601867243,-500.0,0.00020931,2]
[337323132,1725601867264,-500.0,0.00020931,2]
[337323133,1725601867274,-500.0,0.00020931,2]
[337323134,1725601867283,-151.0,0.00020931,2]
[337323135,1725601867293,-407.01833118,0.00020931,2]
[337323136,1725601867303,-500.0,0.00020931,2]
[337323137,1725601867312,-196.48896559,0.00020931,2]
[337323138,1725601867322,-500.0,0.00020931,2]
[337323139,1725601867332,-500.0,0.00020931,2]
[337323140,1725601867341,-500.0,0.00020931,2]
[337323141,1725601867350,-500.0,0.00020931,2]
[337323142,1725601867360,-500.0,0.00020931,2]
[337323143,1725601867369,-734.73,0.00020931,2]
[337323144,1725601867378,-500.0,0.00020931,2]
[337323145,1725601867387,-1625.87,0.00020931,2]
[337323146,1725601867396,-151.0,0.00020931,2]
[337323147,1725601867405,-500.0,0.00020931,2]
[337323148,1725601867415,-500.0,0.00020931,2]
[337323149,1725601867425,-500.0,0.00020931,2]
[337323150,1725601867435,-500.0,0.00020931,2]
[337323151,1725601867444,-444.22188546,0.00020931,2]
[337323152,1725601867454,-500.0,0.00020931,2]
[337323153,1725601867463,-500.0,0.00020931,2]
[337323154,1725601867473,-500.0,0.00020931,2]
[337323155,1725601867482,-615.82652467,0.00020931,2]
[337323156,1725601867491,-500.0,0.00020931,2]
[337323157,1725601867500,-500.0,0.00020931,2]
[337323158,1725601867509,-500.0,0.00020931,2]
[337323159,1725601867518,-500.0,0.00020931,2]
[337323160,1725601867528,-500.0,0.00020931,2]
[337323161,1725601867537,-500.0,0.00020931,2]
[337323162,1725601867547,-500.0,0.00020931,2]
[337323163,1725601867557,-500.0,0.00020931,2]
[337323164,1725601867566,-500.0,0.00020931,2]
[337323165,1725601867575,-500.0,0.00020931,2]
[337323166,1725601867584,-572.76,0.00020931,2]
[337323167,1725601867593,-500.0,0.00020931,2]
[337323168,1725601867603,-500.0,0.00020931,2]
[337323169,1725601867611,-500.0,0.00020931,2]
[337323170,1725601867623,-500.0,0.00020931,2]
[337323171,1725601867632,-532.19,0.00020931,2]
[337323172,1725601867641,-500.0,0.00020931,2]
[337323173,1725601867650,-500.0,0.00020931,2]
[337323174,1725601867659,-500.0,0.00020931,2]
[337323175,1725601867669,-500.0,0.00020931,2]
[337323176,1725601867678,-500.0,0.00020931,2]
[337323177,1725601867687,-500.0,0.00020931,2]
[337323178,1725601867696,-500.0,0.00020931,2]
[337323179,1725601867705,-500.0,0.00020931,2]
[337323180,1725601867714,-500.0,0.00020931,2]
[337323181,1725601867723,-500.0,0.00020931,2]
[337323182,1725601867732,-500.0,0.00020931,2]
[337323183,1725601867742,-500.0,0.00020931,2]
[337323184,1725601867751,-500.0,0.00020931,2]
[337323185,1725601867762,-500.0,0.00020931,2]
[337323186,1725601867771,-510.17814261,0.00020931,2]
[337323187,1725601867780,-500.0,0.00020931,2]
[337323188,1725601867789,-500.0,0.00020931,2]
[337323189,1725601867799,-500.0,0.00020931,2]
[337323190,1725601867809,-500.0,0.00020931,2]
[337323191,1725601867818,-500.0,0.00020931,2]
[337323192,1725601867827,-500.0,0.00020931,2]
[337323193,1725601867836,-500.0,0.00020931,2]
[337323194,1725601867846,-500.0,0.00020931,2]
[337323195,1725601867855,-500.0,0.00020931,2]
[337323196,1725601867864,-500.0,0.00020931,2]
[337323197,1725601867873,-511.04716829,0.00020931,2]
[337323198,1725601867882,-500.0,0.00020931,2]
[337323199,1725601867891,-500.0,0.00020931,2]
[337323200,1725601867901,-500.0,0.00020931,2]
[337323201,1725601867909,-500.0,0.00020931,2]
[337323202,1725601867920,-500.0,0.00020931,2]
[337323203,1725601867929,-299.04520577,0.00020931,2]
[337323204,1725601867938,-500.0,0.00020931,2]
[337323205,1725601867947,-772.05,0.00020931,2]
[337323206,1725601867956,-503.47607138,0.00020931,2]
[337323207,1725601867966,-503.44306657,0.00020931,2]
[337323208,1725601867975,-500.0,0.00020931,2]
[337323209,1725601867984,-500.0,0.00020931,2]
[337323210,1725601867994,-1367.49,0.00020931,2]
[337323211,1725601868002,-500.0,0.00020931,2]
[337323212,1725601868011,-500.0,0.00020931,2]
[337323213,1725601868020,-500.0,0.00020931,2]
[337323214,1725601868029,-193.595704,0.00020931,2]
[337323215,1725601868040,-500.0,0.00020931,2]
[337323216,1725601868050,-500.0,0.00020931,2]
[337323217,1725601868059,-500.0,0.00020931,2]
[337323218,1725601868068,-500.0,0.00020931,2]
[337323219,1725601868077,-500.0,0.00020931,2]
[337323220,1725601868086,-504.13413244,0.00020931,2]
[337323221,1725601868096,-500.0,0.00020931,2]
[337323222,1725601868107,-548.71354484,0.00020931,2]
[337323223,1725601868116,-233.73990871,0.00020931,2]
[337323224,1725601868128,-500.0,0.00020931,2]
[337323225,1725601868137,-500.0,0.00020931,2]
[337323226,1725601868147,-500.0,0.00020931,2]
[337323227,1725601868156,-263.11121515,0.00020931,2]
[337323228,1725601868166,-500.0,0.00020931,2]
[337323229,1725601868183,-504.38947523,0.00020931,2]
[337323230,1725601868192,-500.0,0.00020931,2]
[337323231,1725601868201,-500.0,0.00020931,2]
[337323232,1725601868211,-311.73911999,0.00020931,2]
[337323233,1725601868221,-500.0,0.00020931,2]
[337323234,1725601868231,-505.0,0.00020931,2]
[337323235,1725601868242,-500.0,0.00020931,2]
[337323236,1725601868252,-846.32,0.00020931,2]
[337323237,1725601868262,-502.82446475,0.00020931,2]
[337323238,1725601868271,-500.0,0.00020931,2]
[337323239,1725601868281,-500.0,0.00020931,2]
[337323240,1725601868290,-272.13907172,0.00020931,2]
[337323241,1725601868301,-500.0,0.00020931,2]
[337323242,1725601868311,-500.0,0.00020931,2]
[337323243,1725601868321,-500.0,0.00020931,2]
[337323244,1725601868331,-823.53,0.00020931,2]
[337323245,1725601868342,-500.0,0.00020931,2]
[337323246,1725601868353,-500.0,0.00020931,2]
[337323247,1725601868362,-838.71,0.00020931,2]
[337323248,1725601868371,-500.0,0.00020931,2]
[337323249,1725601868381,-796.84,0.00020931,2]
[337323250,1725601868390,-500.0,0.00020931,2]
[337323251,1725601868399,-500.0,0.00020931,2]
[337323252,1725601868408,-500.0,0.00020931,2]
[337323253,1725601868417,-500.0,0.00020931,2]
[337323254,1725601868431,-500.0,0.00020931,2]
[337323255,1725601868441,-1785.02,0.00020931,2]
[337323256,1725601868451,-500.0,0.00020931,2]
[337323257,1725601868460,-500.0,0.00020931,2]
[337323258,1725601868470,-500.0,0.00020931,2]
[337323259,1725601868479,-500.0,0.00020931,2]
[337323260,1725601868488,-500.0,0.00020931,2]
[337323261,1725601868497,-2023.84,0.00020931,2]
[337323262,1725601868508,-500.0,0.00020931,2]
[337323263,1725601868519,-500.0,0.00020931,2]
[337323264,1725601868529,-500.0,0.00020931,2]
[337323265,1725601868538,-500.0,0.00020931,2]
[337323266,1725601868548,-500.0,0.00020931,2]
[337323267,1725601868558,-343.28083204,0.00020931,2]
[337323268,1725601868567,-846.66,0.00020931,2]
[337323269,1725601868575,-500.0,0.00020931,2]
[337323270,1725601868585,-507.89817147,0.00020931,2]
[337323271,1725601868594,-500.0,0.00020931,2]
[337323272,1725601868604,-500.0,0.00020931,2]
[337323273,1725601868616,-500.0,0.00020931,2]
[337323274,1725601868626,-483.17318248,0.00020931,2]
[337323275,1725601868637,-500.0,0.00020931,2]
[337323276,1725601868646,-500.0,0.00020931,2]
[337323277,1725601868657,-235.884571,0.00020931,2]
[337323278,1725601868666,-1537.21,0.00020931,2]
[337323279,1725601868683,-235.884571,0.00020931,2]
[337323280,1725601868692,-593.71,0.00020931,2]
[337323281,1725601868701,-500.0,0.00020931,2]
[337323282,1725601868711,-500.0,0.00020931,2]
[337323283,1725601868722,-535.71,0.00020931,2]
[337323284,1725601868732,-855.7,0.00020931,2]
[337323285,1725601868742,-500.0,0.00020931,2]
[337323286,1725601868754,-1278.61,0.00020931,2]
[337323287,1725601868765,-528.49,0.00020931,2]
[337323288,1725601868775,-754.34,0.00020931,2]
[337323289,1725601868785,-500.0,0.00020931,2]
[337323290,1725601868796,-500.0,0.00020931,2]
[337323291,1725601868805,-500.0,0.00020931,2]
[337323292,1725601868815,-629.57,0.00020931,2]
[337323293,1725601868824,-500.0,0.00020931,2]
[337323294,1725601868834,-342.465442,0.00020931,2]
[337323295,1725601868843,-500.0,0.00020931,2]
[337323296,1725601868852,-500.0,0.00020931,2]
[337323297,1725601868862,-786.5,0.00020931,2]
[337323298,1725601868871,-342.465442,0.00020931,2]
[337323299,1725601868880,-500.0,0.00020931,2]
[337323300,1725601868889,-151.0,0.00020931,2]
[337323301,1725601868898,-500.0,0.00020931,2]
[337323302,1725601868907,-943.04,0.00020931,2]
[337323303,1725601868916,-500.0,0.00020931,2]
[337323304,1725601868929,-151.0,0.00020931,2]
[337323305,1725601868938,-826.7,0.00020931,2]
[337323306,1725601868948,-500.0,0.00020931,2]
[337323307,1725601868957,-500.0,0.00020931,2]
[337323308,1725601868966,-328.57726196,0.00020931,2]
[337323309,1725601868976,-500.0,0.00020931,2]
[337323310,1725601868987,-500.0,0.00020931,2]
[337323311,1725601868998,-500.0,0.00020931,2]
[337323312,1725601869008,-2463.6,0.00020931,2]
[337323313,1725601869018,-500.0,0.00020931,2]
[337323314,1725601869027,-500.0,0.00020931,2]
[337323315,1725601869036,-500.0,0.00020931,2]
[337323316,1725601869047,-646.61,0.00020931,2]
[337323317,1725601869058,-745.5,0.00020931,2]
[337323318,1725601869067,-2083.29,0.00020931,2]
[337323319,1725601869076,-500.0,0.00020931,2]
[337323320,1725601869086,-515.67857954,0.00020931,2]
[337323321,1725601869096,-611.94660418,0.00020931,2]
[337323322,1725601869105,-500.0,0.00020931,2]
[337323323,1725601869114,-500.0,0.00020931,2]
[337323324,1725601869123,-500.0,0.00020931,2]
[337323325,1725601869133,-500.0,0.00020931,2]
[337323326,1725601869143,-500.0,0.00020931,2]
[337323327,1725601869153,-500.0,0.00020931,2]
[337323328,1725601869162,-500.0,0.00020931,2]
[337323329,1725601869174,-500.0,0.00020931,2]
[337323330,1725601869186,-569.25495652,0.00020931,2]
[337323331,1725601869195,-500.0,0.00020931,2]
[337323332,1725601869204,-500.0,0.00020931,2]
[337323333,1725601869310,-500.0,0.00020931,2]
[337323334,1725601869333,-500.0,0.00020931,2]
[337323335,1725601869343,-500.0,0.00020931,2]
[337323336,1725601869353,-500.0,0.00020931,2]
[337323337,1725601869362,-500.0,0.00020931,2]
[337323338,1725601869372,-500.0,0.00020931,2]
[337323339,1725601869381,-500.0,0.00020931,2]
[337323340,1725601869391,-500.0,0.00020931,2]
[337323341,1725601869400,-500.0,0.00020931,2]
[337323342,1725601869410,-500.0,0.00020931,2]
[337323343,1725601869419,-500.0,0.00020931,2]
[337323344,1725601869429,-587.82981552,0.00020931,2]
[337323345,1725601869439,-500.0,0.00020931,2]
[337323346,1725601869449,-500.0,0.00020931,2]
[337323347,1725601869459,-500.0,0.00020931,2]
[337323348,1725601869468,-852.95,0.00020931,2]
[337323349,1725601869478,-500.0,0.00020931,2]
[337323350,1725601869488,-500.0,0.00020931,2]
[337323351,1725601869497,-500.0,0.00020931,2]
[337323352,1725601869507,-500.0,0.00020931,2]
[337323353,1725601869516,-500.0,0.00020931,2]
[337323354,1725601869525,-500.0,0.00020931,2]
[337323355,1725601869535,-500.0,0.00020931,2]
[337323356,1725601869545,-504.12572542,0.00020931,2]
[337323357,1725601869554,-500.0,0.00020931,2]
[337323358,1725601869564,-500.0,0.00020931,2]
[337323359,1725601869573,-500.0,0.00020931,2]
[337323360,1725601869583,-356.88359095,0.00020931,2]
[337323361,1725601869593,-500.0,0.00020931,2]
[337323362,1725601869602,-500.0,0.00020931,2]
[337323363,1725601869611,-500.0,0.00020931,2]
[337323364,1725601869621,-208.1061349,0.00020942,2]
[337323365,1725601869630,-208.1061349,0.00020946,2]
[337323366,1725601869641,-208.135659,0.00020946,2]
[337323367,1725601869650,-368.989016,0.00020986,2]
[337323368,1725601869660,-1679.48,0.00020999,2]
[337323369,1725601869671,-500.0,0.00020999,2]
[337323370,1725601869680,-500.0,0.00020999,2]
[337323371,1725601869689,-500.0,0.00020999,2]
[337323372,1725601869699,-574.28,0.00020999,2]
[337323373,1725601869709,-500.0,0.00020999,2]
[337323374,1725601869718,-500.0,0.00020999,2]
[337323375,1725601869728,-674.41,0.00020999,2]
[337323376,1725601869738,-500.0,0.00020999,2]
[337323377,1725601869748,-500.0,0.00020999,2]
[337323378,1725601869758,-500.0,0.00020999,2]
[337323379,1725601869767,-514.5131781,0.00020999,2]
[337323380,1725601869777,-500.0,0.00020999,2]
[337323381,1725601869787,-500.0,0.00020999,2]
[337323382,1725601869796,-500.0,0.00020999,2]
[337323383,1725601869806,-1308.07,0.00020999,2]
[337323384,1725601869816,-500.0,0.00020999,2]
[337323385,1725601869826,-500.0,0.00020999,2]
[337323386,1725601869836,-500.0,0.00020999,2]
[337323387,1725601869846,-286.48010862,0.00021,2]
[337323388,1725601869856,-286.48010861,0.00021,2]
[337323389,1725601869865,-286.48010861,0.00021,2]
[337323390,1725601869876,-286.48010861,0.00021,2]
[337323391,1725601869886,-1020.0,0.00021,4]
[337323392,1725601869896,-1020.92,0.00021,5]
[337323393,1725601869906,-508.80333378,0.0002103,2]
[337323394,1725601869916,-508.58062472,0.0002103,2]
[337323395,1725601869928,-500.0,0.0002103,2]
[337323396,1725601869938,-500.0,0.0002103,2]
[337323397,1725601869947,-500.0,0.0002103,2]
[337323398,1725601869957,-367.71307787,0.0002103,2]
[337323399,1725601869967,-500.0,0.0002103,2]
[337323400,1725601869978,-500.0,0.0002103,2]
[337323401,1725601869988,-500.0,0.0002103,2]
[337323402,1725601869998,-214.22204449,0.0002103,2]
[337323403,1725601870008,-500.0,0.0002103,2]
[337323404,1725601870020,-500.0,0.0002103,2]
[337323405,1725601870031,-500.0,0.0002103,2]
[337323406,1725601870040,-151.47660012,0.0002103,2]
[337323407,1725601870052,-274.266028,0.00021031,2]
[337323408,1725601870063,-151.0,0.00021045,2]
[337323409,1725601870072,-156.081052,0.00021045,2]
[337323410,1725601870082,-650.31440767,0.00021045,2]
[337323411,1725601870093,-1000.0,0.00021077,2]
[337323412,1725601870103,-3456.768066,0.000211,2]
[337323413,1725601870113,-1002.653271,0.000211,2]
[337323414,1725601870124,-1236.54370008,0.00021109,2]
[337323415,1725601870136,-1545.06,0.00021165,2]
[337323416,1725601870147,-5836.77,0.00021165,2]
[337323417,1725601870158,-580.19,0.00021165,2]
[337323418,1725601870167,-1217.36,0.00021165,2]
[337323419,1725601870181,-8279.81,0.00021165,2]
[337323420,1725601870190,-500.0,0.00021165,2]
[337323421,1725601870199,-618.73,0.00021165,2]
[337323422,1725601870208,-500.0,0.00021165,2]
[337323423,1725601870217,-500.0,0.00021165,2]
[337323424,1725601870227,-1434.21,0.00021165,2]
[337323425,1725601870237,-1597.52,0.00021165,2]
[337323426,1725601870248,-811.21,0.00021165,2]
[337323427,1725601870261,-2057.13,0.00021165,2]
[337323428,1725601870270,-917.15,0.00021165,2]
[337323429,1725601870280,-1054.75,0.00021165,2]
[337323430,1725601870289,-1743.23,0.00021165,2]
[337323431,1725601870299,-500.0,0.00021165,2]
[337323432,1725601870308,-500.0,0.00021166,2]
[337323433,1725601870318,-226.15772771,0.00021166,2]
[337323434,1725601870327,-500.0,0.00021166,2]
[337323435,1725601870336,-500.0,0.00021166,2]
[337323436,1725601870346,-500.0,0.00021166,2]
[337323437,1725601870355,-500.0,0.00021166,2]
[337323438,1725601870364,-500.0,0.00021166,2]
[337323439,1725601870373,-500.0,0.00021166,2]
[337323440,1725601870382,-500.0,0.00021166,2]
[337323441,1725601870392,-500.0,0.00021166,2]
[337323442,1725601870401,-500.0,0.00021166,2]
[337323443,1725601870410,-457.19055903,0.00021166,2]
[337323444,1725601870422,-920.31,0.00021166,2]
[337323445,1725601870431,-500.0,0.00021166,2]
[337323446,1725601870441,-500.0,0.00021166,2]
[337323447,1725601870450,-1408.48,0.00021166,2]
[337323448,1725601870460,-500.0,0.00021166,2]
[337323449,1725601870469,-200.0,0.00021166,2]
[337323450,1725601870478,-500.0,0.00021166,2]
[337323451,1725601870487,-500.0,0.00021166,2]
[337323452,1725601870497,-500.0,0.00021166,2]
[337323453,1725601870506,-500.0,0.00021166,2]
[337323454,1725601870516,-500.0,0.00021166,2]
[337323455,1725601870526,-944.83,0.00021166,2]
[337323456,1725601870537,-869.82,0.00021166,2]
[337323457,1725601870546,-1296.47,0.00021166,2]
[337323458,1725601870555,-724.63,0.00021166,2]
[337323459,1725601870565,-500.0,0.00021166,2]
[337323460,1725601870574,-500.0,0.00021166,2]
[337323461,1725601870583,-500.0,0.00021166,2]
[337323462,1725601870593,-500.0,0.00021166,2]
[337323463,1725601870602,-500.0,0.00021166,2]
[337323464,1725601870612,-707.11,0.00021166,2]
[337323465,1725601870622,-500.0,0.00021166,2]
[337323466,1725601870633,-500.0,0.00021166,2]
[337323467,1725601870642,-500.0,0.00021166,2]
[337323468,1725601870652,-500.0,0.00021166,2]
[337323469,1725601870661,-500.0,0.00021166,2]
[337323470,1725601870673,-500.0,0.00021166,2]
[337323471,1725601870682,-500.0,0.00021166,2]
[337323472,1725601870692,-500.0,0.00021166,2]
[337323473,1725601870701,-2766.06,0.00021166,2]
[337323474,1725601870712,-500.0,0.00021166,2]
[337323475,1725601870722,-500.0,0.00021166,2]
[337323476,1725601870732,-500.0,0.00021166,2]
[337323477,1725601870742,-500.0,0.00021166,2]
[337323478,1725601870751,-488.60101957,0.00021166,2]
[337323479,1725601870761,-500.0,0.00021166,2]
[337323480,1725601870771,-500.0,0.00021166,2]
[337323481,1725601870781,-500.0,0.00021166,2]
[337323482,1725601870791,-506.4,0.00021166,2]
[337323483,1725601870801,-500.0,0.00021166,2]
[337323484,1725601870811,-500.0,0.00021166,2]
[337323485,1725601870820,-516.0161593,0.00021166,2]
[337323486,1725601870830,-500.0,0.00021166,2]
[337323487,1725601870839,-500.0,0.00021166,2]
[337323488,1725601870849,-363.44721898,0.00021166,2]
[337323489,1725601870859,-500.0,0.00021166,2]
[337323490,1725601870868,-500.0,0.00021166,2]
[337323491,1725601870878,-525.94481782,0.00021166,2]
[337323492,1725601870887,-500.0,0.00021166,2]
[337323493,1725601870898,-612.92021107,0.00021166,2]
[337323494,1725601870907,-500.0,0.00021166,2]
[337323495,1725601870916,-500.0,0.00021166,2]
[337323496,1725601870931,-500.0,0.00021186,2]
[337323497,1725601870941,-502.72370434,0.00021186,2]
[337323498,1725601870951,-500.0,0.00021186,2]
[337323499,1725601870962,-500.0,0.00021186,2]
[337323500,1725601870972,-627.23,0.00021186,2]
[337323501,1725601870985,-500.0,0.00021186,2]
[337323502,1725601870994,-619.65,0.00021186,2]
[337323503,1725601871004,-715.68,0.00021186,2]
[337323504,1725601871015,-500.0,0.00021186,2]
[337323505,1725601871024,-500.0,0.00021186,2]
[337323506,1725601871034,-500.0,0.00021186,2]
[337323507,1725601871046,-536.09823843,0.00021186,2]
[337323508,1725601871060,-500.0,0.00021186,2]
[337323509,1725601871069,-90.53282128,0.00021186,2]
[337323510,1725601871385,-409.46717872,0.00021186,2]
[337323511,1725601871394,-649.58704938,0.00021186,2]
[337323512,1725601871486,-1711.56,0.00020069,2]
[337323513,1725601871496,-500.0,0.0002007,2]
[337323514,1725601871505,-1711.56,0.00020343,2]
[337323515,1725601871514,-1711.56,0.00020617,2]
[337323516,1725601871523,-1711.56,0.00020891,2]
[337323517,1725601871532,-1711.56,0.00021165,2]
[337323518,1725601871541,-97.42295062,0.00021186,2]
[337323519,1725601871550,-500.0,0.00021186,2]
[337323520,1725601871561,-500.0,0.00021186,2]
[337323521,1725601871570,-1084.19,0.00021186,2]
[337323522,1725601871579,-500.0,0.00021186,2]
[337323523,1725601871588,-500.0,0.00021186,2]
[337323524,1725601871597,-500.0,0.00021186,2]
[337323525,1725601871606,-500.0,0.00021186,2]
[337323526,1725601871616,-500.0,0.00021186,2]
[337323527,1725601871626,-500.0,0.00021186,2]
[337323528,1725601871636,-665.76,0.00021186,2]
[337323529,1725601871646,-500.0,0.00021186,2]
[337323530,1725601871655,-500.0,0.00021186,2]
[337323531,1725601871665,-500.0,0.00021186,2]
[337323532,1725601871676,-500.0,0.00021186,2]
[337323533,1725601871686,-820.41,0.00021186,2]
[337323534,1725601871695,-500.0,0.00021186,2]
[337323535,1725601871705,-500.0,0.00021186,2]
[337323536,1725601871714,-915.58,0.00021186,2]
[337323537,1725601871724,-502.94083854,0.00021186,2]
[337323538,1725601871734,-500.0,0.00021186,2]
[337323539,1725601871744,-633.31892807,0.00021186,2]
[337323540,1725601871753,-500.0,0.00021186,2]
[337323541,1725601871763,-500.0,0.00021186,2]
[337323542,1725601871772,-370.00205513,0.00021186,2]
[337323543,1725601871782,-1560.23,0.00021186,2]
[337323544,1725601871791,-500.0,0.00021186,2]